bitfinex-derivatives/quotes_BTCF0:USTF0_20250812
["timestamp","ask_amount","ask_price","bid_price","bid_amount"]
[1754999109457,0.52523242,118490.0,118460.0,1.38072826]
[1754999109661,0.4495469,118490.0,118480.0,0.49091406]
[1754999109854,0.084407,118490.0,118480.0,1.37656406]
[1754999111663,0.40561301,118500.0,118490.0,0.0844033]
[1754999111866,0.51561301,118500.0,118490.0,0.2020533]
[1754999112457,0.43120971,118500.0,118490.0,0.2020533]
[1754999113163,0.43220971,118500.0,118490.0,0.2060533]
[1754999113463,0.43220971,118500.0,118490.0,0.21469868]
[1754999113664,0.46518971,118500.0,118490.0,0.21069868]
[1754999113863,0.49900971,118500.0,118490.0,0.21469868]
[1754999114161,0.55310971,118500.0,118490.0,0.21469868]
[1754999114555,0.55310971,118500.0,118490.0,0.21569868]
[1754999114755,0.55310971,118500.0,118490.0,0.62220224]
[1754999114756,0.001,118500.0,118490.0,0.62220224]
[1754999116362,0.001,118500.0,118490.0,0.87440744]
[1754999116564,0.001,118500.0,118490.0,0.94310521]
[1754999117561,0.001,118500.0,118490.0,0.96025536]
[1754999117766,0.39431194,118520.0,118510.0,0.0843891]
[1754999118066,0.2615892,118520.0,118510.0,1.39338986]
[1754999118260,0.2955692,118520.0,118510.0,1.39338986]
[1754999118460,0.3198492,118520.0,118510.0,1.39338986]
[1754999118664,0.3198492,118520.0,118510.0,0.9868863]
[1754999118859,0.2382692,118520.0,118510.0,0.9868863]
[1754999119062,0.3375205,118530.0,118510.0,1.64655246]
[1754999119365,0.4105305,118530.0,118520.0,0.154882]
[1754999119668,0.86492406,118530.0,118520.0,0.202032]
[1754999120366,0.86792406,118530.0,118520.0,0.202032]
[1754999121070,0.86492406,118530.0,118520.0,0.202032]
[1754999121259,0.86692406,118530.0,118520.0,0.202032]
[1754999122066,0.4604205,118530.0,118520.0,0.202032]
[1754999123364,0.5804205,118530.0,118520.0,0.202032]
[1754999123663,0.98692406,118530.0,118520.0,0.202032]
[1754999127568,0.4604205,118530.0,118520.0,0.202032]
[1754999127766,0.86692406,118530.0,118520.0,0.202032]
[1754999131773,0.4604205,118530.0,118520.0,0.202032]
[1754999131969,0.87692406,118530.0,118520.0,0.202032]
[1754999132666,0.2072748,118530.0,118520.0,0.61123556]
[1754999133070,0.2072748,118530.0,118520.0,0.204732]
[1754999133267,0.61377836,118530.0,118520.0,0.204732]
[1754999134776,0.2072748,118530.0,118520.0,0.204732]
[1754999136277,0.61377836,118530.0,118520.0,0.204732]
[1754999136477,0.72377836,118530.0,118520.0,0.851902]
[1754999137370,0.3172748,118530.0,118520.0,0.851902]
[1754999137678,0.72377836,118530.0,118520.0,0.851902]
[1754999137873,0.72377836,118530.0,118520.0,0.949902]
[1754999138078,0.72377836,118530.0,118520.0,0.972602]
[1754999138275,0.2072748,118530.0,118520.0,0.972602]
[1754999138478,0.61377836,118530.0,118520.0,0.972602]
[1754999141184,0.2072748,118530.0,118520.0,0.972602]
[1754999141386,0.61377836,118530.0,118520.0,0.972602]
[1754999145091,0.2072748,118530.0,118520.0,0.972602]
[1754999146196,0.207275,118530.0,118520.0,1.37910556]
[1754999146396,0.168245,118530.0,118520.0,1.37910556]
[1754999146597,0.086375,118530.0,118520.0,1.37910556]
[1754999148502,0.002,118530.0,118520.0,1.37898556]
[1754999148691,0.3236433,118550.0,118520.0,1.37898556]
[1754999148692,0.3236434,118550.0,118540.0,0.0843679]
[1754999148897,0.4815734,118550.0,118540.0,0.8992679]
[1754999149195,0.54993273,118550.0,118540.0,0.9724679]
[1754999149702,0.95643629,118550.0,118540.0,0.9724679]
[1754999149900,0.96043629,118550.0,118540.0,0.9734679]
[1754999150090,0.96043629,118550.0,118540.0,0.98180025]
[1754999150294,0.55393273,118550.0,118540.0,0.98180025]
[1754999150701,0.55993273,118550.0,118540.0,0.98280025]
[1754999151005,0.55593273,118550.0,118540.0,0.98180025]
[1754999151300,0.55693273,118550.0,118540.0,0.98280025]
[1754999153301,0.96343629,118550.0,118540.0,0.98280025]
[1754999154705,0.55693273,118550.0,118540.0,0.98280025]
[1754999155001,0.96343629,118550.0,118540.0,0.98280025]
[1754999157202,0.55693273,118550.0,118540.0,0.98280025]
[1754999160208,0.55693273,118550.0,118540.0,0.99958985]
[1754999160604,0.86143344,118550.0,118540.0,1.30409056]
[1754999160812,0.55693273,118550.0,118540.0,1.30409056]
[1754999161009,0.86143344,118550.0,118540.0,1.30409056]
[1754999163412,0.86143344,118550.0,118540.0,0.99958985]
[1754999163615,0.86143344,118550.0,118540.0,1.29563821]
[1754999164116,0.55693273,118550.0,118540.0,1.29563821]
[1754999164418,0.86143344,118550.0,118540.0,1.29563821]
[1754999164805,0.86143344,118550.0,118540.0,1.27884861]
[1754999165009,0.86143344,118550.0,118540.0,1.30438527]
[1754999166013,0.55693273,118550.0,118540.0,1.30438527]
[1754999166323,0.86143344,118550.0,118540.0,1.30438527]
[1754999168012,0.55693273,118550.0,118540.0,1.30438527]
[1754999168317,0.86143344,118550.0,118540.0,1.30438527]
[1754999168516,0.86143344,118550.0,118540.0,1.30444897]
[1754999171221,0.86143344,118550.0,118540.0,0.99994826]
[1754999171417,0.86143344,118550.0,118540.0,1.30444897]
[1754999172122,0.86143344,118550.0,118540.0,0.99994826]
[1754999172323,0.86143344,118550.0,118540.0,1.30444897]
[1754999173621,0.1013317,118550.0,118540.0,1.60894968]
[1754999173822,0.0913617,118550.0,118540.0,1.60894968]
[1754999174726,0.0913617,118550.0,118540.0,0.99994826]
[1754999174925,0.1229817,118550.0,118540.0,1.60894968]
[1754999175121,0.2093117,118550.0,118540.0,1.60894968]
[1754999182034,0.1943617,118550.0,118540.0,1.60894968]
[1754999182233,0.1708017,118550.0,118540.0,1.60894968]
[1754999182437,0.1391817,118550.0,118540.0,1.60894968]
[1754999183931,0.1391817,118550.0,118540.0,1.59168731]
[1754999184632,0.0913617,118550.0,118540.0,1.59168731]
[1754999186539,0.0913617,118550.0,118540.0,0.98268589]
[1754999186836,0.45883241,118550.0,118540.0,1.59168731]
[1754999187037,0.1943617,118550.0,118540.0,1.59168731]
[1754999187240,0.49886241,118550.0,118540.0,1.59168731]
[1754999187632,0.47530241,118550.0,118540.0,1.59168731]
[1754999187834,0.1708017,118550.0,118540.0,1.59168731]
[1754999188028,0.47530241,118550.0,118540.0,1.59168731]
[1754999188640,0.2093117,118550.0,118540.0,1.59168731]
[1754999189334,0.2093117,118550.0,118540.0,1.2871866]
[1754999189542,0.2093117,118550.0,118540.0,1.59168731]
[1754999190441,0.2093117,118550.0,118540.0,0.98268589]
[1754999190641,0.2093117,118550.0,118540.0,1.59168731]
[1754999192441,0.1708017,118550.0,118540.0,1.59168731]
[1754999192850,0.0913617,118550.0,118540.0,1.59168731]
[1754999193347,0.0913617,118550.0,118540.0,0.98268589]
[1754999193641,0.0913617,118550.0,118540.0,1.59168731]
[1754999195348,0.007,118550.0,118540.0,1.59168731]
[1754999196746,0.007,118550.0,118540.0,1.74366599]
[1754999196947,0.0913607,118550.0,118540.0,1.74366599]
[1754999197552,0.0913607,118550.0,118540.0,1.59168731]
[1754999198356,0.0913607,118550.0,118540.0,1.74366599]
[1754999200553,0.0913607,118550.0,118540.0,1.13466457]
[1754999200756,0.0913607,118550.0,118540.0,1.59168731]
[1754999202057,0.007,118550.0,118540.0,1.59168731]
[1754999207161,0.0913608,118550.0,118540.0,1.59168731]
[1754999210065,0.007,118550.0,118540.0,1.59168731]
[1754999211465,0.0913607,118550.0,118540.0,1.59168731]
[1754999215576,0.007,118550.0,118540.0,1.59168731]
[1754999218982,0.0913607,118550.0,118540.0,1.59168731]
[1754999220676,0.007,118550.0,118540.0,1.59168731]
[1754999223082,0.0913607,118550.0,118540.0,1.59168731]
[1754999224278,0.007,118550.0,118540.0,1.59168731]
[1754999224778,0.0913608,118550.0,118540.0,1.59168731]
[1754999226078,0.007,118550.0,118540.0,1.59168731]
[1754999226287,0.0843572,118560.0,118540.0,2.14928682]
[1754999226487,0.0843572,118560.0,118550.0,0.76597222]
[1754999226688,0.0843572,118560.0,118550.0,0.81395222]
[1754999226878,0.35611975,118580.0,118560.0,0.253056]
[1754999227081,0.47066385,118580.0,118570.0,1.58069792]
[1754999227282,0.23360865,118580.0,118570.0,1.58069792]
[1754999227582,0.18742865,118580.0,118570.0,1.58069792]
[1754999228181,0.22413865,118580.0,118570.0,1.27619721]
[1754999228784,0.22313865,118580.0,118570.0,1.27619721]
[1754999228984,0.22313865,118580.0,118570.0,0.9726965]
[1754999228985,0.31095865,118580.0,118570.0,0.9726965]
[1754999229192,0.31095865,118580.0,118570.0,1.27719721]
[1754999230593,0.27331865,118580.0,118570.0,1.27719721]
[1754999230784,0.24060865,118580.0,118570.0,1.58169792]
[1754999231285,0.11008495,118580.0,118570.0,1.58169792]
[1754999233290,0.15183495,118580.0,118570.0,1.58169792]
[1754999233585,0.19665495,118580.0,118570.0,1.58169792]
[1754999233792,0.11912495,118580.0,118570.0,1.58169792]
[1754999233990,0.11008495,118580.0,118570.0,1.58169792]
[1754999235687,0.3233365,118600.0,118590.0,0.0843324]
[1754999235894,0.5838484,118600.0,118590.0,1.27602311]
[1754999237391,0.5868484,118600.0,118590.0,1.27602311]
[1754999237990,0.5164984,118600.0,118590.0,1.27602311]
[1754999238287,0.3869865,118600.0,118590.0,1.27702311]
[1754999238692,0.3202165,118600.0,118590.0,1.27702311]
[1754999238885,0.3572165,118600.0,118590.0,1.27602311]
[1754999239087,0.3582165,118600.0,118590.0,1.27702311]
[1754999239588,0.3348765,118600.0,118590.0,1.5901077]
[1754999239897,0.2559865,118600.0,118590.0,1.5901077]
[1754999240396,0.3725165,118600.0,118590.0,1.28560699]
[1754999242691,0.4221665,118600.0,118590.0,0.51900699]
[1754999242899,0.4925165,118600.0,118590.0,1.28548699]
[1754999243089,0.3725165,118600.0,118590.0,1.28548699]
[1754999251709,0.3725165,118600.0,118590.0,1.27001699]
[1754999252910,0.3725165,118600.0,118590.0,1.5745177]
[1754999255307,0.3740465,118600.0,118590.0,1.5729877]
[1754999256715,0.4940465,118600.0,118590.0,1.5729877]
[1754999257513,0.4840465,118600.0,118590.0,0.96398628]
[1754999257816,0.4842465,118600.0,118590.0,1.5880277]
[1754999263423,1.09324792,118600.0,118590.0,0.50971301]
[1754999263625,1.09324792,118600.0,118590.0,0.76724]
[1754999264224,1.09324792,118600.0,118590.0,0.8515723]
[1754999264525,1.09324792,118600.0,118590.0,1.23893301]
[1754999265422,1.09324792,118600.0,118590.0,1.25333301]
[1754999265622,0.78874721,118600.0,118590.0,1.25333301]
[1754999270228,0.4842465,118600.0,118590.0,1.25333301]
[1754999272829,0.78874721,118600.0,118590.0,1.25333301]
[1754999275536,0.4842465,118600.0,118590.0,1.25333301]
[1754999282040,0.78874721,118600.0,118590.0,1.25333301]
[1754999282443,0.78874721,118600.0,118590.0,0.9488323]
[1754999282741,0.4842465,118600.0,118590.0,0.9703423]
[1754999282937,0.78874721,118600.0,118590.0,1.27484301]
[1754999284948,0.4842465,118600.0,118590.0,1.27484301]
[1754999286050,0.4822465,118600.0,118590.0,1.27584301]
[1754999287050,0.4812465,118600.0,118590.0,1.27484301]
[1754999287251,0.4822465,118600.0,118590.0,1.27884301]
[1754999287652,0.4812465,118600.0,118590.0,1.27484301]
[1754999287853,0.4822465,118600.0,118590.0,1.27884301]
[1754999298555,0.4822465,118600.0,118590.0,0.9743423]
[1754999298759,0.4822465,118600.0,118590.0,1.27884301]
[1754999298956,0.4822465,118600.0,118590.0,1.58334372]
[1754999299160,0.4831965,118600.0,118590.0,1.27884301]
[1754999299756,0.4831965,118600.0,118590.0,1.58334372]
[1754999299967,0.4831965,118600.0,118590.0,1.27884301]
[1754999300466,0.4831965,118600.0,118590.0,1.58334372]
[1754999300966,0.4831965,118600.0,118590.0,1.27884301]
[1754999301565,0.4831965,118600.0,118590.0,0.9743423]
[1754999301868,0.4831965,118600.0,118590.0,1.27884301]
[1754999302675,0.4831965,118600.0,118590.0,0.9743423]
[1754999302875,0.4831965,118600.0,118590.0,1.27884301]
[1754999305263,0.4831965,118600.0,118590.0,0.9743423]
[1754999305455,0.4831965,118600.0,118590.0,1.27884301]
[1754999308772,0.1953262,118600.0,118590.0,1.58334372]
[1754999312672,0.3155762,118600.0,118590.0,1.58334372]
[1754999313369,0.2774762,118600.0,118590.0,1.58334372]
[1754999314066,0.2443162,118600.0,118590.0,1.58334372]
[1754999315570,0.1953262,118600.0,118590.0,1.58334372]
[1754999318074,0.2284862,118600.0,118590.0,1.58334372]
[1754999320076,0.3021362,118600.0,118590.0,1.58334372]
[1754999320277,0.3158562,118600.0,118590.0,1.58334372]
[1754999322076,0.3158562,118600.0,118590.0,0.9743423]
[1754999322272,0.3158562,118600.0,118590.0,0.12377]
[1754999322273,0.60663691,118600.0,118590.0,0.12377]
[1754999322471,0.94337095,118600.0,118590.0,0.41357071]
[1754999322671,0.63887024,118600.0,118590.0,1.27791301]
[1754999323077,0.33436953,118600.0,118590.0,1.27791301]
[1754999323479,0.63887024,118600.0,118590.0,1.27791301]
[1754999324673,0.33436953,118600.0,118590.0,1.27791301]
[1754999324881,1.83436953,118600.0,118590.0,1.27791301]
[1754999325674,1.6953262,118600.0,118590.0,1.58241372]
[1754999327984,1.7284862,118600.0,118590.0,1.58241372]
[1754999328186,1.7665862,118600.0,118590.0,1.27791301]
[1754999328385,1.7665862,118600.0,118590.0,1.58241372]
[1754999332084,1.7665862,118600.0,118590.0,1.27791301]
[1754999332683,1.7665862,118600.0,118590.0,1.58241372]
[1754999333390,1.7665862,118600.0,118590.0,1.27791301]
[1754999336491,1.7665862,118600.0,118590.0,0.9734123]
[1754999336692,1.7665862,118600.0,118590.0,1.27791301]
[1754999338685,1.7665862,118600.0,118590.0,1.58241372]
[1754999339384,1.7665862,118600.0,118590.0,1.27791301]
[1754999339787,1.7197062,118600.0,118590.0,1.27791301]
[1754999340095,1.7665862,118600.0,118590.0,1.58241372]
[1754999344495,0.2665862,118600.0,118590.0,1.58241372]
[1754999344695,0.3158562,118600.0,118590.0,1.58241372]
[1754999345095,0.2777562,118600.0,118590.0,1.58241372]
[1754999345496,0.2283662,118600.0,118590.0,1.58241372]
[1754999345692,0.2052762,118600.0,118590.0,1.58241372]
[1754999346795,0.1953262,118600.0,118590.0,1.58241372]
[1754999346991,0.001,118600.0,118590.0,1.88691443]
[1754999347203,0.001,118600.0,118590.0,1.58241372]
[1754999348695,0.001,118600.0,118590.0,1.88691443]
[1754999349205,0.001,118600.0,118590.0,1.58241372]
[1754999349803,0.001,118600.0,118590.0,1.88691443]
[1754999350307,0.2529438,118620.0,118610.0,0.0843181]
[1754999350604,0.4978638,118620.0,118610.0,1.57872952]
[1754999352306,0.4978638,118620.0,118610.0,1.27422881]
[1754999353007,0.4978638,118620.0,118610.0,1.27522881]
[1754999354104,0.4988638,118620.0,118610.0,1.27722881]
[1754999354713,0.4988638,118620.0,118610.0,1.27822881]
[1754999355206,0.80336451,118620.0,118610.0,0.33297071]
[1754999355410,1.43084882,118620.0,118610.0,0.004]
[1754999355715,1.29496412,118620.0,118610.0,0.004]
[1754999356711,1.12634811,118620.0,118610.0,0.004]
[1754999357415,0.51734669,118620.0,118610.0,0.004]
[1754999357612,1.12634811,118620.0,118610.0,0.004]
[1754999358609,0.92302116,118620.0,118610.0,0.004]
[1754999361415,0.51734669,118620.0,118610.0,0.004]
[1754999361602,0.92302116,118620.0,118610.0,0.004]
[1754999367713,0.92334144,118620.0,118610.0,0.004]
[1754999371618,0.92334144,118620.0,118610.0,0.003]
[1754999372218,0.0843181,118610.0,118600.0,0.1069451]
[1754999372421,0.65720257,118610.0,118600.0,0.1315351]
[1754999372620,0.73076257,118610.0,118600.0,0.09644]
[1754999372915,0.0843252,118600.0,118590.0,1.0810312]
[1754999373119,0.3150952,118600.0,118590.0,1.0954012]
[1754999374216,0.3150952,118600.0,118590.0,1.48670567]
[1754999374422,0.3150952,118600.0,118590.0,1.50107567]
[1754999375114,0.3150952,118600.0,118590.0,1.50207567]
[1754999376418,0.3150952,118600.0,118590.0,1.0964012]
[1754999376622,0.3160952,118600.0,118590.0,1.50407567]
[1754999376826,0.3160952,118600.0,118590.0,1.50507567]
[1754999378227,0.3160952,118600.0,118590.0,1.42166407]
[1754999378715,0.62036692,118600.0,118590.0,1.32026132]
[1754999379216,0.62036692,118600.0,118590.0,0.07777]
[1754999379519,0.92463864,118600.0,118590.0,0.89405]
[1754999379723,0.62036692,118600.0,118590.0,1.19832172]
[1754999380119,0.3160952,118600.0,118590.0,1.19832172]
[1754999380322,0.62036692,118600.0,118590.0,1.19832172]
[1754999382027,0.62036692,118600.0,118590.0,1.28265402]
[1754999383126,0.3160952,118600.0,118590.0,1.28265402]
[1754999384323,0.62036692,118600.0,118590.0,1.28265402]
[1754999384822,0.3160952,118600.0,118590.0,0.61456539]
[1754999385022,0.3160952,118600.0,118590.0,1.38492539]
[1754999387228,0.3160952,118600.0,118590.0,0.9792623]
[1754999387420,0.3160952,118600.0,118590.0,1.38492539]
[1754999390634,0.1953252,118600.0,118590.0,1.38492539]
[1754999391831,0.3160952,118600.0,118590.0,1.38492539]
[1754999395829,0.1953252,118600.0,118590.0,1.38492539]
[1754999409941,0.001,118600.0,118590.0,1.38492539]
[1754999410134,0.1686307,118620.0,118610.0,0.0843179]
[1754999410336,0.362947,118620.0,118610.0,1.37924099]
[1754999410540,0.11,118620.0,118610.0,1.37924099]
[1754999410743,0.40396291,118630.0,118620.0,0.0843107]
[1754999410936,0.52396291,118630.0,118620.0,0.59547379]
[1754999411244,0.61277291,118630.0,118620.0,0.60951379]
[1754999411432,0.64273291,118630.0,118620.0,0.60951379]
[1754999411741,0.5760045,118630.0,118620.0,0.60951379]
[1754999412141,0.5390945,118630.0,118620.0,0.60951379]
[1754999412341,0.5410945,118630.0,118620.0,0.60951379]
[1754999412539,0.5410945,118630.0,118620.0,0.2038507]
[1754999412844,0.4592345,118630.0,118620.0,0.60951379]
[1754999413045,0.3749243,118630.0,118620.0,0.60951379]
[1754999413639,0.3759243,118630.0,118620.0,0.61051379]
[1754999413845,1.8759243,118630.0,118620.0,0.61051379]
[1754999414739,1.9099343,118630.0,118620.0,0.61051379]
[1754999414944,1.9468443,118630.0,118620.0,0.61051379]
[1754999415147,1.9468443,118630.0,118620.0,0.2048507]
[1754999415347,1.9468443,118630.0,118620.0,0.61051379]
[1754999415645,1.9468443,118630.0,118620.0,0.61351379]
[1754999416647,1.9468443,118630.0,118620.0,0.61451379]
[1754999416648,1.9448443,118630.0,118620.0,0.61451379]
[1754999419652,1.8739243,118630.0,118620.0,0.61451379]
[1754999419854,1.9448443,118630.0,118620.0,0.61451379]
[1754999420254,1.9448443,118630.0,118620.0,0.2088507]
[1754999420446,1.9304643,118630.0,118620.0,0.61451379]
[1754999420754,1.7053069,118630.0,118620.0,0.61451379]
[1754999420946,1.5853069,118630.0,118620.0,0.61451379]
[1754999421345,1.501,118630.0,118620.0,0.61451379]
[1754999421546,1.5853034,118630.0,118620.0,0.61451379]
[1754999421750,1.6562234,118630.0,118620.0,0.61451379]
[1754999427658,1.6562234,118630.0,118620.0,0.2088507]
[1754999427958,1.6562234,118630.0,118620.0,0.61451379]
[1754999429361,1.6562234,118630.0,118620.0,0.2088507]
[1754999429856,1.6562234,118630.0,118620.0,1.38579379]
[1754999433859,1.6562234,118630.0,118620.0,0.9801307]
[1754999434064,1.6562234,118630.0,118620.0,1.38579379]
[1754999441066,1.6562234,118630.0,118620.0,0.9801307]
[1754999441364,1.6562234,118630.0,118620.0,1.38579379]
[1754999442367,1.7662234,118630.0,118620.0,1.38579379]
[1754999446164,1.7862234,118630.0,118620.0,1.38579379]
[1754999446359,1.6562234,118630.0,118620.0,1.38579379]
[1754999446751,1.6562234,118630.0,118620.0,1.58824384]
[1754999446957,1.7862234,118630.0,118620.0,1.58824384]
[1754999448965,1.6562234,118630.0,118620.0,1.58824384]
[1754999449272,1.7862234,118630.0,118620.0,1.58824384]
[1754999449564,1.6562234,118630.0,118620.0,1.58824384]
[1754999449753,1.7762234,118630.0,118620.0,1.58824384]
[1754999450861,1.6562234,118630.0,118620.0,1.58824384]
[1754999451066,1.7862234,118630.0,118620.0,1.58824384]
[1754999451766,1.6562234,118630.0,118620.0,1.58824384]
[1754999452069,1.7762234,118630.0,118620.0,1.58911384]
[1754999453464,1.6562234,118630.0,118620.0,1.58911384]
[1754999456177,1.7862234,118630.0,118620.0,1.58911384]
[1754999456470,1.6562234,118630.0,118620.0,1.58911384]
[1754999456970,1.6562234,118630.0,118620.0,1.6063875]
[1754999457161,1.7862234,118630.0,118620.0,1.6063875]
[1754999460075,1.6562234,118630.0,118620.0,1.6063875]
[1754999460373,1.7762234,118630.0,118620.0,1.60632348]
[1754999460561,1.6562234,118630.0,118620.0,1.60632348]
[1754999461672,1.7762234,118630.0,118620.0,1.60632348]
[1754999461875,1.7662234,118630.0,118620.0,1.60632348]
[1754999462173,1.6562234,118630.0,118620.0,1.60632348]
[1754999462971,1.7762234,118630.0,118620.0,0.99821034]
[1754999463175,1.6562234,118630.0,118620.0,1.60632348]
[1754999463971,1.7762234,118630.0,118620.0,0.99821034]
[1754999464181,1.7762234,118630.0,118620.0,1.60632348]
[1754999464372,1.6562234,118630.0,118620.0,1.60632348]
[1754999465171,1.7662234,118630.0,118620.0,1.60632348]
[1754999465370,1.6562234,118630.0,118620.0,1.60632348]
[1754999465873,1.7862234,118630.0,118620.0,1.75830216]
[1754999466075,1.6562234,118630.0,118620.0,1.75830216]
[1754999467782,1.7862234,118630.0,118620.0,1.75830216]
[1754999468083,1.6562234,118630.0,118620.0,1.75830216]
[1754999470382,1.7862234,118630.0,118620.0,1.75830216]
[1754999470581,1.6562234,118630.0,118620.0,1.75830216]
[1754999471174,1.6557634,118630.0,118620.0,1.74892216]
[1754999472779,1.6557634,118630.0,118620.0,0.97764216]
[1754999473082,1.6557634,118630.0,118620.0,1.75920216]
[1754999473482,1.6557634,118630.0,118620.0,1.75932216]
[1754999474688,1.6557634,118630.0,118620.0,1.74936216]
[1754999477893,1.6557634,118630.0,118620.0,1.59738348]
[1754999480495,1.5853034,118630.0,118620.0,1.59738348]
[1754999480689,1.6409134,118630.0,118620.0,0.98927034]
[1754999480989,1.6548334,118630.0,118620.0,1.60734348]
[1754999484793,1.6548334,118630.0,118620.0,0.99923034]
[1754999484996,1.6548334,118630.0,118620.0,1.60734348]
[1754999487895,1.7748334,118630.0,118620.0,1.60734348]
[1754999489396,1.7748334,118630.0,118620.0,0.83562348]
[1754999489597,1.7748334,118630.0,118620.0,1.60642348]
[1754999490795,1.7748334,118630.0,118620.0,0.22751034]
[1754999491090,2.07888997,118630.0,118620.0,1.60622348]
[1754999491297,2.07888997,118630.0,118620.0,0.41057691]
[1754999491485,2.07888997,118630.0,118620.0,0.41057681]
[1754999491692,2.07888997,118630.0,118620.0,0.02220964]
[1754999491892,2.07888997,118630.0,118620.0,0.87796024]
[1754999492099,2.07888997,118630.0,118620.0,1.18201681]
[1754999492395,2.07888997,118630.0,118620.0,0.87796024]
[1754999492598,2.07888997,118630.0,118620.0,1.18201681]
[1754999493291,2.07888997,118630.0,118620.0,1.48607338]
[1754999493791,2.07888997,118630.0,118620.0,0.87796024]
[1754999493991,2.07888997,118630.0,118620.0,1.18201681]
[1754999494297,1.7748334,118630.0,118620.0,1.55943338]
[1754999494999,1.7748334,118630.0,118620.0,0.95132024]
[1754999495299,1.7748334,118630.0,118620.0,1.60830338]
[1754999496998,2.07888997,118630.0,118620.0,1.60830338]
[1754999497194,2.07888997,118630.0,118620.0,1.00019024]
[1754999497498,2.07888997,118630.0,118620.0,1.53675338]
[1754999498200,2.07888997,118630.0,118620.0,1.57090338]
[1754999498401,2.07888997,118630.0,118620.0,1.20833681]
[1754999498602,2.07888997,118630.0,118620.0,0.41057681]
[1754999498901,2.38294654,118630.0,118620.0,0.02220964]
[1754999499103,2.38294654,118630.0,118620.0,0.79456964]
[1754999499499,2.38294654,118630.0,118620.0,0.02220964]
[1754999499903,2.38294654,118630.0,118620.0,0.79464964]
[1754999500104,2.38294654,118630.0,118620.0,0.02220964]
[1754999500398,2.07888997,118630.0,118620.0,0.79460964]
[1754999500702,2.18041754,118630.0,118620.0,0.79460964]
[1754999501607,0.0843176,118610.0,118600.0,0.3372915]
[1754999501804,0.68696125,118610.0,118600.0,1.1098115]
[1754999502004,0.75841125,118610.0,118600.0,1.1098115]
[1754999502204,0.35282711,118610.0,118600.0,1.1683215]
[1754999502406,0.35282711,118610.0,118600.0,0.3958015]
[1754999502606,0.35282711,118610.0,118600.0,1.2321615]
[1754999503205,0.35282711,118610.0,118600.0,1.63774564]
[1754999503504,0.35282711,118610.0,118590.0,1.1656]
[1754999503505,0.0843248,118600.0,118590.0,1.98185894]
[1754999503708,0.3240448,118600.0,118590.0,2.75453894]
[1754999504398,0.72962894,118600.0,118590.0,2.1802563]
[1754999504603,0.3240448,118600.0,118590.0,2.1802563]
[1754999505004,0.3240448,118600.0,118590.0,2.1836163]
[1754999505706,0.3250448,118600.0,118590.0,2.1886163]
[1754999506601,0.3250448,118600.0,118590.0,0.1656875]
[1754999506800,0.3250448,118600.0,118590.0,0.90307]
[1754999507908,0.3250448,118600.0,118590.0,0.9874021]
[1754999509004,0.3250448,118600.0,118590.0,1.39298624]
[1754999510313,0.3250448,118600.0,118590.0,0.9874021]
[1754999510514,0.3250448,118600.0,118590.0,0.9872421]
[1754999511215,0.3250448,118600.0,118590.0,0.9870021]
[1754999513004,0.3250448,118600.0,118590.0,0.13023]
[1754999513208,0.3250448,118600.0,118590.0,0.008]
[1754999513209,0.73062894,118600.0,118590.0,0.008]
[1754999514306,0.73062894,118600.0,118590.0,0.08288]
[1754999514713,0.73062894,118600.0,118590.0,0.10543]
[1754999515812,0.73062894,118600.0,118590.0,0.04692]
[1754999516615,0.73062894,118600.0,118590.0,0.02437]
[1754999517712,0.73062894,118600.0,118590.0,0.008]
[1754999520314,1.30485308,118600.0,118590.0,0.008]
[1754999521032,0.4936848,118600.0,118590.0,0.008]
[1754999521213,0.89926894,118600.0,118590.0,0.008]
[1754999521917,1.67186894,118600.0,118590.0,0.008]
[1754999522614,1.87499618,118600.0,118590.0,0.008]
[1754999523217,1.81842618,118600.0,118590.0,0.008]
[1754999523423,1.84999618,118600.0,118590.0,0.008]
[1754999523921,1.98999618,118600.0,118590.0,0.008]
[1754999524823,0.6086848,118600.0,118590.0,0.12791]
[1754999525115,0.6086848,118600.0,118590.0,0.35987569]
[1754999525116,0.3215148,118600.0,118590.0,0.35987569]
[1754999525310,0.62587049,118600.0,118590.0,0.43226569]
[1754999525515,0.62587049,118600.0,118590.0,1.20490569]
[1754999525717,0.93022618,118600.0,118590.0,1.20490569]
[1754999526419,0.3215148,118600.0,118590.0,1.20490569]
[1754999526620,0.72722812,118600.0,118590.0,0.90055]
[1754999526820,0.3215148,118600.0,118590.0,0.90055]
[1754999527019,0.72722812,118600.0,118590.0,0.90055]
[1754999527920,0.3215148,118600.0,118590.0,0.90055]
[1754999528121,0.72722812,118600.0,118590.0,0.90055]
[1754999528322,0.3215148,118600.0,118590.0,0.90055]
[1754999528510,0.72722812,118600.0,118590.0,0.90055]
[1754999529226,0.3215148,118600.0,118590.0,0.90055]
[1754999529420,0.72722812,118600.0,118590.0,0.90055]
[1754999531528,0.3215148,118600.0,118590.0,0.90055]
[1754999531718,0.72722812,118600.0,118590.0,0.90055]
[1754999532218,0.3215148,118600.0,118590.0,0.90055]
[1754999532420,0.72722812,118600.0,118590.0,0.90055]
[1754999533220,0.3215148,118600.0,118590.0,0.90055]
[1754999533426,0.72722812,118600.0,118590.0,0.90055]
[1754999533828,0.2523048,118600.0,118590.0,0.90055]
[1754999534130,0.3221348,118600.0,118590.0,0.9848821]
[1754999534329,0.3221348,118600.0,118590.0,0.90055]
[1754999534330,0.72784812,118600.0,118590.0,0.90055]
[1754999535332,0.72784812,118600.0,118590.0,0.9848821]
[1754999535828,0.72784812,118600.0,118590.0,0.90055]
[1754999536031,0.3221348,118600.0,118590.0,0.90055]
[1754999536732,0.3221348,118600.0,118590.0,0.9848821]
[1754999537529,0.72784812,118600.0,118590.0,0.9848821]
[1754999537729,0.3221348,118600.0,118590.0,0.9848821]
[1754999538117,0.72784812,118600.0,118590.0,0.9848821]
[1754999538428,0.72784812,118600.0,118590.0,0.90055]
[1754999541734,0.72784812,118600.0,118590.0,0.9848821]
[1754999542028,0.72784812,118600.0,118590.0,0.90055]
[1754999542533,0.3221348,118600.0,118590.0,0.90055]
[1754999542735,0.72784812,118600.0,118590.0,0.90055]
[1754999543731,0.86784812,118600.0,118590.0,0.90055]
[1754999543937,0.72784812,118600.0,118590.0,0.90055]
[1754999546631,0.93073392,118600.0,118590.0,0.90055]
[1754999548139,0.93073392,118600.0,118590.0,0.89755]
[1754999548339,0.93173392,118600.0,118590.0,0.89355]
[1754999549338,0.93173392,118600.0,118590.0,0.82116]
[1754999549529,0.93173392,118600.0,118590.0,0.10666]
[1754999549832,0.93173392,118600.0,118590.0,0.12091]
[1754999550236,1.70401392,118600.0,118590.0,0.001]
[1754999550636,1.70501392,118600.0,118590.0,0.001]
[1754999550936,0.0843321,118590.0,118580.0,0.84467]
[1754999551129,0.64396326,118590.0,118580.0,0.89119]
[1754999551535,0.64396326,118590.0,118580.0,0.11891]
[1754999551734,0.94826282,118590.0,118580.0,0.10466]
[1754999552135,0.94926282,118590.0,118580.0,0.10466]